[Event "*** Titled Tuesday Blitz"]
[Site "Chess.com"]
[Date "2021.02.09"]
[Round "1"]
[White "AurumO"]
[Black "ShahMatKanal"]
[Result "0-1"]
[WhiteElo "1897"]
[BlackElo "2473"]
[TimeControl "180+1"]
[EndTime "10:07:32 PST"]
[Termination "ShahMatKanal won by resignation"]

1. e4 {[%clk 0:02:59]} 1... c5 {[%clk 0:02:55.1]} 2. c3 {[%clk 0:02:58]} 2...
Nf6 {[%clk 0:02:54.2]} 3. e5 {[%clk 0:02:57.6]} 3... Nd5 {[%clk 0:02:53.7]} 4.
Nf3 {[%clk 0:02:56.3]} 4... e6 {[%clk 0:02:52.4]} 5. Bc4 {[%clk 0:02:56.1]} 5...
d6 {[%clk 0:02:49.4]} 6. exd6 {[%clk 0:02:55.3]} 6... Bxd6 {[%clk 0:02:49.3]} 7.
d4 {[%clk 0:02:52.2]} 7... cxd4 {[%clk 0:02:47.2]} 8. cxd4 {[%clk 0:02:53.1]}
8... O-O {[%clk 0:02:46.1]} 9. O-O {[%clk 0:02:51.6]} 9... Nc6 {[%clk
0:02:41.8]} 10. Nc3 {[%clk 0:02:47.9]} 10... Nxc3 {[%clk 0:02:38.3]} 11. bxc3
{[%clk 0:02:47.4]} 11... Bd7 {[%clk 0:02:29.7]} 12. Re1 {[%clk 0:02:17.7]} 12...
Rc8 {[%clk 0:02:27.9]} 13. Bd3 {[%clk 0:02:14.6]} 13... Be7 {[%clk 0:02:22.3]}
14. Bf4 {[%clk 0:02:10.7]} 14... Bf6 {[%clk 0:02:22]} 15. Rc1 {[%clk 0:02:01.7]}
15... Na5 {[%clk 0:02:19.9]} 16. Ne5 {[%clk 0:01:54.7]} 16... Bc6 {[%clk
0:02:14.9]} 17. Qh5 {[%clk 0:01:43]} 17... g6 {[%clk 0:02:09.4]} 18. Qh3 {[%clk
0:01:35.5]} 18... Bd5 {[%clk 0:01:52.6]} 19. Ng4 {[%clk 0:01:31.4]} 19... Bg7
{[%clk 0:01:50.2]} 20. Bh6 {[%clk 0:01:26.6]} 20... Nc4 {[%clk 0:01:14.7]} 21.
Bxg7 {[%clk 0:01:12.7]} 21... Kxg7 {[%clk 0:01:15.6]} 22. Qh6+ {[%clk
0:01:07.7]} 22... Kg8 {[%clk 0:01:15.9]} 23. h4 {[%clk 0:00:43.3]} 23... f5
{[%clk 0:00:47.1]} 24. Bxc4 {[%clk 0:00:40.2]} 24... fxg4 {[%clk 0:00:29.8]} 25.
Bxd5 {[%clk 0:00:39.7]} 25... Qxd5 {[%clk 0:00:29.4]} 26. h5 {[%clk 0:00:37]}
26... Rf6 {[%clk 0:00:27.1]} 27. Re5 {[%clk 0:00:33.5]} 27... Qxa2 {[%clk
0:00:22.4]} 28. Rf1 {[%clk 0:00:30.4]} 28... g3 {[%clk 0:00:16.2]} 29. Qe3
{[%clk 0:00:27]} 29... gxf2+ {[%clk 0:00:13.8]} 30. Kh1 {[%clk 0:00:22.5]} 30...
Rcf8 {[%clk 0:00:10]} 31. d5 {[%clk 0:00:19.9]} 31... exd5 {[%clk 0:00:08.5]}
32. Re7 {[%clk 0:00:19.3]} 32... Qc4 {[%clk 0:00:08.4]} 33. Qh3 {[%clk
0:00:15.7]} 33... gxh5 {[%clk 0:00:06.2]} 34. Qg3+ {[%clk 0:00:12]} 34... Rg6
{[%clk 0:00:05.7]} 35. Rxf2 {[%clk 0:00:06.4]} 35... Rxg3 {[%clk 0:00:03.9]} 36.
Rxf8+ {[%clk 0:00:05.9]} 36... Kxf8 {[%clk 0:00:04.8]} 37. Rxh7 {[%clk
0:00:05.5]} 37... Qh4+ {[%clk 0:00:04.7]} 38. Kg1 {[%clk 0:00:05.3]} 38... Rxc3
{[%clk 0:00:05.6]} 39. Rh8+ {[%clk 0:00:05.2]} 39... Kg7 {[%clk 0:00:05.3]} 40.
Rh7+ {[%clk 0:00:06.1]} 40... Kxh7 {[%clk 0:00:05.1]} 0-1

[Event "*** Titled Tuesday Blitz"]
[Site "Chess.com"]
[Date "2021.02.09"]
[Round "1"]
[White "QuintilianoR"]
[Black "Hangar-18"]
[Result "0-1"]
[WhiteElo "2693"]
[BlackElo "2395"]
[TimeControl "180+1"]
[EndTime "10:07:33 PST"]
[Termination "Hangar-18 won on time"]

1. d4 {[%clk 0:03:00.9]} 1... Nf6 {[%clk 0:02:52.8]} 2. c4 {[%clk 0:03:00.5]}
2... g6 {[%clk 0:02:52.7]} 3. Nf3 {[%clk 0:03:00.8]} 3... Bg7 {[%clk 0:02:53.3]}
4. Nc3 {[%clk 0:03:01.4]} 4... d6 {[%clk 0:02:53.9]} 5. Bg5 {[%clk 0:03:00.4]}
5... O-O {[%clk 0:02:52.9]} 6. e3 {[%clk 0:03:00.5]} 6... b6 {[%clk 0:02:51.1]}
7. Be2 {[%clk 0:02:59.9]} 7... Bb7 {[%clk 0:02:51.5]} 8. O-O {[%clk 0:03:00.3]}
8... Nbd7 {[%clk 0:02:50.3]} 9. Rc1 {[%clk 0:02:58.5]} 9... a5 {[%clk
0:02:50.3]} 10. a3 {[%clk 0:02:54.7]} 10... e5 {[%clk 0:02:35.1]} 11. d5 {[%clk
0:02:39.4]} 11... h6 {[%clk 0:02:29.3]} 12. Bh4 {[%clk 0:02:38.4]} 12... g5
{[%clk 0:02:22.2]} 13. Bg3 {[%clk 0:02:37.8]} 13... Nh5 {[%clk 0:02:22.8]} 14.
Nd2 {[%clk 0:02:32.6]} 14... Nxg3 {[%clk 0:02:22.7]} 15. fxg3 {[%clk 0:02:07.5]}
15... f5 {[%clk 0:02:20.9]} 16. Qc2 {[%clk 0:02:05.1]} 16... e4 {[%clk
0:01:56.6]} 17. g4 {[%clk 0:02:03.5]} 17... f4 {[%clk 0:01:56.8]} 18. exf4
{[%clk 0:01:48.2]} 18... e3 {[%clk 0:01:54.2]} 19. Nde4 {[%clk 0:01:30.1]} 19...
gxf4 {[%clk 0:01:52.6]} 20. g5 {[%clk 0:00:58.9]} 20... Ne5 {[%clk 0:01:44.3]}
21. gxh6 {[%clk 0:00:53.1]} 21... Bxh6 {[%clk 0:01:45.2]} 22. Nb5 {[%clk
0:00:30.8]} 22... Rf7 {[%clk 0:01:35]} 23. Nd4 {[%clk 0:00:26.7]} 23... Bc8
{[%clk 0:01:35.5]} 24. Ne6 {[%clk 0:00:16.3]} 24... Bxe6 {[%clk 0:01:33.3]} 25.
dxe6 {[%clk 0:00:17.2]} 25... Rg7 {[%clk 0:01:33.6]} 26. Bf3 {[%clk 0:00:15.4]}
26... Qh4 {[%clk 0:01:23.2]} 27. Nc3 {[%clk 0:00:13.5]} 27... Rf8 {[%clk
0:01:12.5]} 28. Qe2 {[%clk 0:00:12.4]} 28... Kh8 {[%clk 0:01:11.3]} 29. Rcd1
{[%clk 0:00:11.4]} 29... Rfg8 {[%clk 0:01:06.4]} 30. Kh1 {[%clk 0:00:11.7]}
30... Bg5 {[%clk 0:00:49.7]} 31. Bd5 {[%clk 0:00:10.8]} 31... Rh7 {[%clk
0:00:46.5]} 32. h3 {[%clk 0:00:10.5]} 32... Qg3 {[%clk 0:00:42]} 33. Rf3 {[%clk
0:00:09.4]} 33... Nxf3 {[%clk 0:00:38.7]} 34. Qxf3 {[%clk 0:00:10.3]} 34... Be7
{[%clk 0:00:27.7]} 35. Qxg3 {[%clk 0:00:10.2]} 35... Rxg3 {[%clk 0:00:28.2]} 36.
Ne2 {[%clk 0:00:10.8]} 36... Rg5 {[%clk 0:00:24.9]} 37. Nxf4 {[%clk 0:00:10.4]}
37... Rf5 {[%clk 0:00:23.8]} 38. Ne2 {[%clk 0:00:10.5]} 38... Rf2 {[%clk
0:00:24.4]} 39. Bf3 {[%clk 0:00:10.8]} 39... Rh6 {[%clk 0:00:23.7]} 40. Kg1
{[%clk 0:00:10.9]} 40... Rxe6 {[%clk 0:00:23.2]} 41. Nd4 {[%clk 0:00:10]} 41...
Rg6 {[%clk 0:00:21.8]} 42. Re1 {[%clk 0:00:10.6]} 42... Bf6 {[%clk 0:00:17.8]}
43. Bh5 {[%clk 0:00:09.7]} 43... Rg5 {[%clk 0:00:16.8]} 0-1

[Event "*** Titled Tuesday Blitz"]
[Site "Chess.com"]
[Date "2021.02.09"]
[Round "1"]
[White "eCztery"]
[Black "volunteers1998"]
[Result "1-0"]
[WhiteElo "2482"]
[BlackElo "2041"]
[TimeControl "180+1"]
[EndTime "10:07:33 PST"]
[Termination "eCztery won on time"]

1. e4 {[%clk 0:02:51.6]} 1... c5 {[%clk 0:02:57.5]} 2. Nf3 {[%clk 0:02:48]} 2...
Nc6 {[%clk 0:02:55.8]} 3. g3 {[%clk 0:02:46.3]} 3... g6 {[%clk 0:02:51.2]} 4.
Bg2 {[%clk 0:02:39.5]} 4... Bg7 {[%clk 0:02:49.9]} 5. O-O {[%clk 0:02:38.1]}
5... d6 {[%clk 0:02:45.8]} 6. c3 {[%clk 0:02:34.6]} 6... Nf6 {[%clk 0:02:39.6]}
7. Re1 {[%clk 0:02:33.4]} 7... O-O {[%clk 0:02:36.3]} 8. d4 {[%clk 0:02:21.4]}
8... cxd4 {[%clk 0:02:33.2]} 9. cxd4 {[%clk 0:02:21.3]} 9... Bg4 {[%clk
0:02:31.3]} 10. h3 {[%clk 0:02:15.4]} 10... Bxf3 {[%clk 0:02:28.6]} 11. Bxf3
{[%clk 0:02:16.3]} 11... Qd7 {[%clk 0:02:20.9]} 12. Kg2 {[%clk 0:02:12.7]} 12...
Rfc8 {[%clk 0:02:14.5]} 13. Nc3 {[%clk 0:01:56.5]} 13... a6 {[%clk 0:02:06.2]}
14. Be3 {[%clk 0:01:54.2]} 14... b5 {[%clk 0:01:56.8]} 15. Rc1 {[%clk
0:01:52.6]} 15... Rab8 {[%clk 0:01:51.2]} 16. Bg5 {[%clk 0:01:42.9]} 16... h6
{[%clk 0:01:47.7]} 17. Bxf6 {[%clk 0:01:42.4]} 17... Bxf6 {[%clk 0:01:45]} 18.
Bg4 {[%clk 0:01:34.1]} 18... e6 {[%clk 0:01:42.1]} 19. d5 {[%clk 0:01:27.8]}
19... Ne5 {[%clk 0:01:35.3]} 20. dxe6 {[%clk 0:01:26.6]} 20... fxe6 {[%clk
0:01:32.6]} 21. Nd5 {[%clk 0:01:20.9]} 21... Nxg4 {[%clk 0:01:13.9]} 22. Qxg4
{[%clk 0:01:18.5]} 22... Qf7 {[%clk 0:01:02.1]} 23. Nf4 {[%clk 0:01:09.1]} 23...
Kh7 {[%clk 0:00:47.4]} 24. Nxe6 {[%clk 0:01:03.9]} 24... Rxc1 {[%clk 0:00:43]}
25. Rxc1 {[%clk 0:01:04.8]} 25... Re8 {[%clk 0:00:36.7]} 26. Rc7 {[%clk
0:00:58.1]} 26... Re7 {[%clk 0:00:33.3]} 27. Rxe7 {[%clk 0:00:53.8]} 27... Qxe7
{[%clk 0:00:31.1]} 28. Nf4 {[%clk 0:00:22.5]} 28... Qxe4+ {[%clk 0:00:27.4]} 29.
Kh2 {[%clk 0:00:22.2]} 29... Qc2 {[%clk 0:00:20.6]} 30. Qd7+ {[%clk 0:00:21.4]}
30... Bg7 {[%clk 0:00:16.7]} 31. Kg1 {[%clk 0:00:20.5]} 31... Qb1+ {[%clk
0:00:11.3]} 32. Kg2 {[%clk 0:00:18.6]} 32... Qe4+ {[%clk 0:00:09.4]} 33. Kh2
{[%clk 0:00:17.5]} 33... Qc2 {[%clk 0:00:03.9]} 34. Kg1 {[%clk 0:00:14.4]} 34...
Qb1+ {[%clk 0:00:03.2]} 35. Kg2 {[%clk 0:00:11.3]} 35... Qe4+ {[%clk 0:00:02.8]}
36. Kf1 {[%clk 0:00:11.9]} 36... Qb1+ {[%clk 0:00:02.4]} 37. Ke2 {[%clk
0:00:12.4]} 37... Qe4+ {[%clk 0:00:02]} 38. Kd2 {[%clk 0:00:12]} 38... Qd4+
{[%clk 0:00:01.6]} 39. Nd3 {[%clk 0:00:12.5]} 1-0

[Event "*** Titled Tuesday Blitz"]
[Site "Chess.com"]
[Date "2021.02.09"]
[Round "1"]
[White "KruHor"]
[Black "Colombiano07"]
[Result "0-1"]
[WhiteElo "2585"]
[BlackElo "2312"]
[TimeControl "180+1"]
[EndTime "10:07:35 PST"]
[Termination "Colombiano07 won on time"]

1. e4 {[%clk 0:02:58]} 1... c6 {[%clk 0:02:59.5]} 2. d4 {[%clk 0:02:55.5]} 2...
d5 {[%clk 0:02:58.5]} 3. Nd2 {[%clk 0:02:54.6]} 3... dxe4 {[%clk 0:02:58.2]} 4.
Nxe4 {[%clk 0:02:54.4]} 4... Nf6 {[%clk 0:02:58.2]} 5. Bd3 {[%clk 0:02:50.1]}
5... Qxd4 {[%clk 0:02:48.8]} 6. Nf3 {[%clk 0:02:49.1]} 6... Qd8 {[%clk
0:02:48.2]} 7. Qe2 {[%clk 0:02:48.4]} 7... Nxe4 {[%clk 0:02:47.5]} 8. Bxe4
{[%clk 0:02:47.9]} 8... Nd7 {[%clk 0:02:46.9]} 9. O-O {[%clk 0:02:47.3]} 9...
Nf6 {[%clk 0:02:46.9]} 10. Rd1 {[%clk 0:02:44.8]} 10... Qc7 {[%clk 0:02:42.9]}
11. Ne5 {[%clk 0:02:39.7]} 11... Nxe4 {[%clk 0:02:31.9]} 12. Qxe4 {[%clk
0:02:38.8]} 12... e6 {[%clk 0:02:26.8]} 13. Bf4 {[%clk 0:02:30.1]} 13... Qb6
{[%clk 0:02:20.6]} 14. Nc4 {[%clk 0:02:22.9]} 14... Qc5 {[%clk 0:02:09.9]} 15.
Bd6 {[%clk 0:02:07]} 15... Bxd6 {[%clk 0:02:02.5]} 16. Nxd6+ {[%clk 0:02:05.8]}
16... Ke7 {[%clk 0:02:03.1]} 17. Qh4+ {[%clk 0:01:53.9]} 17... g5 {[%clk
0:02:01.3]} 18. Qh5 {[%clk 0:01:40.8]} 18... Rf8 {[%clk 0:01:41.8]} 19. Qxh7
{[%clk 0:01:40.1]} 19... Bd7 {[%clk 0:01:34.3]} 20. Nxf7 {[%clk 0:01:36.6]}
20... Qf5 {[%clk 0:01:16.6]} 21. Rxd7+ {[%clk 0:00:53.1]} 21... Kxd7 {[%clk
0:01:13.5]} 22. Ne5+ {[%clk 0:00:52.3]} 22... Kd6 {[%clk 0:00:35.8]} 23. Nc4+
{[%clk 0:00:51.8]} 23... Kc5 {[%clk 0:00:35.6]} 24. Qe7+ {[%clk 0:00:31.3]}
24... Kxc4 {[%clk 0:00:35.4]} 25. b3+ {[%clk 0:00:30.6]} 25... Kb5 {[%clk
0:00:32.2]} 26. Qxb7+ {[%clk 0:00:29.2]} 26... Kc5 {[%clk 0:00:30.2]} 27. b4+
{[%clk 0:00:27.1]} 27... Kd4 {[%clk 0:00:12.6]} 28. Rd1+ {[%clk 0:00:22.5]}
28... Ke5 {[%clk 0:00:12.7]} 29. Qg7+ {[%clk 0:00:18.2]} 29... Qf6 {[%clk
0:00:09.8]} 30. Qc7+ {[%clk 0:00:15.4]} 30... Kf5 {[%clk 0:00:09.9]} 31. Qh7+
{[%clk 0:00:13.8]} 31... Qg6 {[%clk 0:00:04.8]} 32. Qe7 {[%clk 0:00:12.6]} 32...
e5 {[%clk 0:00:02.8]} 33. Rd6 {[%clk 0:00:11.2]} 33... Rae8 {[%clk 0:00:01.5]}
34. g4+ {[%clk 0:00:08.9]} 34... Kxg4 {[%clk 0:00:01.6]} 35. h3+ {[%clk
0:00:04.2]} 35... Kxh3 {[%clk 0:00:01.5]} 36. Qd7+ {[%clk 0:00:03.6]} 36... Qf5
{[%clk 0:00:01.2]} 37. Rh6+ {[%clk 0:00:01.9]} 37... Kg4 {[%clk 0:00:01.3]} 0-1

[Event "*** Titled Tuesday Blitz"]
[Site "Chess.com"]
[Date "2021.02.09"]
[Round "1"]
[White "PotapovaM"]
[Black "Alindsay211"]
[Result "0-1"]
[WhiteElo "2646"]
[BlackElo "2369"]
[TimeControl "180+1"]
[EndTime "10:07:40 PST"]
[Termination "Alindsay211 won by checkmate"]

1. d4 {[%clk 0:03:00.4]} 1... Nf6 {[%clk 0:02:56]} 2. c4 {[%clk 0:02:57.2]} 2...
e6 {[%clk 0:02:56.4]} 3. Nc3 {[%clk 0:02:57.4]} 3... d5 {[%clk 0:02:56.6]} 4.
Nf3 {[%clk 0:02:56.5]} 4... Be7 {[%clk 0:02:56.9]} 5. g3 {[%clk 0:02:54.5]} 5...
O-O {[%clk 0:02:54.5]} 6. Bg2 {[%clk 0:02:55]} 6... b6 {[%clk 0:02:53.2]} 7.
cxd5 {[%clk 0:02:50.5]} 7... exd5 {[%clk 0:02:53.2]} 8. O-O {[%clk 0:02:50.3]}
8... Bb7 {[%clk 0:02:50.9]} 9. Ne5 {[%clk 0:02:51]} 9... Na6 {[%clk 0:02:48.5]}
10. Bf4 {[%clk 0:02:51.3]} 10... c5 {[%clk 0:02:46.9]} 11. Rc1 {[%clk
0:02:49.5]} 11... Rc8 {[%clk 0:02:44.7]} 12. Nb5 {[%clk 0:02:43]} 12... Ra8
{[%clk 0:02:36.4]} 13. a3 {[%clk 0:02:38.8]} 13... Qe8 {[%clk 0:02:24.8]} 14.
Nc3 {[%clk 0:02:34.9]} 14... cxd4 {[%clk 0:02:22.5]} 15. Qxd4 {[%clk 0:02:31.6]}
15... Nc5 {[%clk 0:02:23]} 16. Qd1 {[%clk 0:02:28]} 16... Rd8 {[%clk 0:02:20.1]}
17. Qc2 {[%clk 0:01:43.4]} 17... Bd6 {[%clk 0:02:14.9]} 18. Nf3 {[%clk
0:01:37.9]} 18... Bxf4 {[%clk 0:02:05.1]} 19. gxf4 {[%clk 0:01:38.8]} 19... d4
{[%clk 0:02:05.8]} 20. b4 {[%clk 0:01:31.1]} 20... Ne6 {[%clk 0:01:56.4]} 21. f5
{[%clk 0:01:13.4]} 21... Nf4 {[%clk 0:01:53.7]} 22. Nb1 {[%clk 0:01:03.8]} 22...
Nxe2+ {[%clk 0:01:47.9]} 23. Kh1 {[%clk 0:01:02.1]} 23... Nxc1 {[%clk
0:01:47.1]} 24. Qxc1 {[%clk 0:00:58.1]} 24... d3 {[%clk 0:01:42.3]} 25. Nbd2
{[%clk 0:00:54.9]} 25... Ne4 {[%clk 0:01:35.9]} 26. Re1 {[%clk 0:00:47.1]} 26...
Rc8 {[%clk 0:01:26.5]} 27. Qa1 {[%clk 0:00:40.8]} 27... Rc2 {[%clk 0:01:09]} 28.
Qd4 {[%clk 0:00:33.1]} 28... Rxd2 {[%clk 0:00:48.4]} 29. Nxd2 {[%clk 0:00:27.9]}
29... Ng3+ {[%clk 0:00:48.4]} 30. hxg3 {[%clk 0:00:15.7]} 30... Qxe1+ {[%clk
0:00:48.4]} 31. Kh2 {[%clk 0:00:15.9]} 31... Bxg2 {[%clk 0:00:46.7]} 32. Kxg2
{[%clk 0:00:09.3]} 32... Qxd2 {[%clk 0:00:46.7]} 33. f6 {[%clk 0:00:10.1]} 33...
g6 {[%clk 0:00:42]} 34. Qh4 {[%clk 0:00:07.9]} 34... h5 {[%clk 0:00:39.4]} 35.
g4 {[%clk 0:00:06.9]} 35... Qf4 {[%clk 0:00:35.7]} 36. f3 {[%clk 0:00:06.5]}
36... d2 {[%clk 0:00:33.1]} 37. Qh1 {[%clk 0:00:06.5]} 37... Qe3 {[%clk
0:00:24.8]} 38. gxh5 {[%clk 0:00:05.9]} 38... Qe2+ {[%clk 0:00:22.2]} 39. Kg3
{[%clk 0:00:05.9]} 39... d1=Q {[%clk 0:00:17.4]} 40. Qh3 {[%clk 0:00:05.4]}
40... Qxf3+ {[%clk 0:00:17]} 41. Kh2 {[%clk 0:00:05.4]} 41... Qxh3+ {[%clk
0:00:16.2]} 42. Kxh3 {[%clk 0:00:05.5]} 42... Qxh5+ {[%clk 0:00:16.9]} 43. Kg3
{[%clk 0:00:06.4]} 43... Qg5+ {[%clk 0:00:16.9]} 44. Kf3 {[%clk 0:00:06.4]}
44... Qxf6+ {[%clk 0:00:17.8]} 45. Kg2 {[%clk 0:00:06.1]} 45... Qb2+ {[%clk
0:00:18.7]} 46. Kg3 {[%clk 0:00:06.1]} 46... Qxa3+ {[%clk 0:00:19.1]} 47. Kg4
{[%clk 0:00:06.5]} 47... Qxb4+ {[%clk 0:00:19.7]} 48. Kg5 {[%clk 0:00:06.3]}
48... Qe7+ {[%clk 0:00:20.6]} 49. Kh6 {[%clk 0:00:06.7]} 49... Qh4# {[%clk
0:00:20.2]} 0-1

[Event "*** Titled Tuesday Blitz"]
[Site "Chess.com"]
[Date "2021.02.09"]
[Round "1"]
[White "BrandonJacobson"]
[Black "chescomhuynya"]
[Result "1-0"]
[WhiteElo "3014"]
[BlackElo "2465"]
[TimeControl "180+1"]
[EndTime "10:07:41 PST"]
[Termination "BrandonJacobson won by resignation"]

1. d4 {[%clk 0:03:00.9]} 1... Nf6 {[%clk 0:02:58.3]} 2. c4 {[%clk 0:03:01]} 2...
g6 {[%clk 0:02:57.2]} 3. Nc3 {[%clk 0:03:01.1]} 3... d5 {[%clk 0:02:54]} 4. cxd5
{[%clk 0:03:01.4]} 4... Nxd5 {[%clk 0:02:54.9]} 5. e4 {[%clk 0:03:01.8]} 5...
Nxc3 {[%clk 0:02:55.6]} 6. bxc3 {[%clk 0:03:02.7]} 6... Bg7 {[%clk 0:02:56.5]}
7. Nf3 {[%clk 0:03:03.3]} 7... c5 {[%clk 0:02:57]} 8. Rb1 {[%clk 0:03:03.6]}
8... O-O {[%clk 0:02:55]} 9. Be2 {[%clk 0:03:04.1]} 9... Nc6 {[%clk 0:02:49.5]}
10. d5 {[%clk 0:03:04.2]} 10... Ne5 {[%clk 0:02:50.1]} 11. Nxe5 {[%clk
0:03:03.5]} 11... Bxe5 {[%clk 0:02:51]} 12. Qd2 {[%clk 0:03:04.3]} 12... Bc7
{[%clk 0:02:50.2]} 13. O-O {[%clk 0:02:53.2]} 13... Ba5 {[%clk 0:02:44.3]} 14.
Qe3 {[%clk 0:02:30.6]} 14... e6 {[%clk 0:02:34.9]} 15. c4 {[%clk 0:02:26]} 15...
exd5 {[%clk 0:02:27]} 16. exd5 {[%clk 0:02:21.3]} 16... b6 {[%clk 0:02:22.4]}
17. Bb2 {[%clk 0:02:07.2]} 17... Bf5 {[%clk 0:02:22.4]} 18. Bd3 {[%clk
0:02:02.9]} 18... Qd7 {[%clk 0:02:12.7]} 19. Qe5 {[%clk 0:01:33.5]} 19... f6
{[%clk 0:02:12.7]} 20. Bxf5 {[%clk 0:01:34.1]} 20... Qxf5 {[%clk 0:01:59.8]} 21.
Qxf5 {[%clk 0:01:34.6]} 21... gxf5 {[%clk 0:02:00.7]} 22. d6 {[%clk 0:01:35.2]}
22... Rad8 {[%clk 0:01:59.9]} 23. Rbd1 {[%clk 0:01:33.4]} 23... Kf7 {[%clk
0:01:59.9]} 24. Rd5 {[%clk 0:01:32.6]} 24... Rfe8 {[%clk 0:02:00.3]} 25. a4
{[%clk 0:01:09.6]} 25... Re1 {[%clk 0:01:59.8]} 26. Rxe1 {[%clk 0:01:07.1]}
26... Bxe1 {[%clk 0:02:00.7]} 27. Kf1 {[%clk 0:00:56]} 27... Bb4 {[%clk
0:01:52.9]} 28. Ke2 {[%clk 0:00:45.6]} 28... Ke6 {[%clk 0:01:50]} 29. Kd3 {[%clk
0:00:44.9]} 29... Rxd6 {[%clk 0:01:46.5]} 30. Rxd6+ {[%clk 0:00:45.8]} 30...
Kxd6 {[%clk 0:01:47.4]} 31. Bxf6 {[%clk 0:00:46.6]} 31... a6 {[%clk 0:01:32.7]}
32. Ke3 {[%clk 0:00:24.6]} 32... Ke6 {[%clk 0:00:50.4]} 33. Bd8 {[%clk
0:00:23.9]} 33... Ba5 {[%clk 0:00:50.7]} 34. h3 {[%clk 0:00:17.5]} 34... h5
{[%clk 0:00:46.2]} 35. Kf4 {[%clk 0:00:14.2]} 35... Bd2+ {[%clk 0:00:45.2]} 36.
Kf3 {[%clk 0:00:14.7]} 36... Ba5 {[%clk 0:00:43.4]} 37. g4 {[%clk 0:00:14.7]}
37... fxg4+ {[%clk 0:00:42.2]} 38. hxg4 {[%clk 0:00:15.6]} 38... hxg4+ {[%clk
0:00:37.6]} 39. Kxg4 {[%clk 0:00:16.5]} 39... Ke5 {[%clk 0:00:25.5]} 40. f4+
{[%clk 0:00:14.2]} 40... Kd4 {[%clk 0:00:25.9]} 41. f5 {[%clk 0:00:13.7]} 41...
Kxc4 {[%clk 0:00:26.4]} 42. f6 {[%clk 0:00:11.6]} 42... Bc3 {[%clk 0:00:26.9]}
43. f7 {[%clk 0:00:11.6]} 43... Bg7 {[%clk 0:00:26.9]} 44. Bxb6 {[%clk
0:00:04.7]} 44... Kb3 {[%clk 0:00:19]} 45. Bxc5 {[%clk 0:00:04.2]} 45... Kxa4
{[%clk 0:00:19.3]} 46. Kf5 {[%clk 0:00:04.9]} 46... Kb5 {[%clk 0:00:19.2]} 47.
Ba3 {[%clk 0:00:05]} 47... Ka4 {[%clk 0:00:18.5]} 48. Bd6 {[%clk 0:00:04.8]}
48... Kb5 {[%clk 0:00:16.6]} 49. Kg6 {[%clk 0:00:05.3]} 1-0